Workbook

Sheet ΚΌΣΤΟΣ ΑΝΑΚΑΙΝΙΣΗΣ
B1: ΥΠΟΛΟΓΙΣΜΟΣ ΚΟΣΤΟΥΣ ΑΝΑΚΑΙΝΙΣΗΣ ΚΟΥΖΙΝΑΣ
B3: Κατηγορία | C3: Είδη | D3: Ποσότητα | E3: Εκτιμώμενο κόστος | F3: Πραγματικό κόστος | G3: Συνολικό εκτιμώμενο κόστος | H3: Συνολικό πραγματικό κόστος
B4: Ντουλάπια | C4: Κάτω ντουλάπια: Αρθρωτά-Τυπικά (ποσότητα σε μέτρα) | D4: 25 | E4: 5.00 € | G4: =Δεδομένα[[#This Row],[Ποσότητα]]*Δεδομένα[[#This Row],[Εκτιμώμενο κόστος]] -> 125 € | H4: =Δεδομένα[[#This Row],[Ποσότητα]]*Δεδομένα[[#This Row],[Πραγματικό κόστος]] -> 0 €
B5: Ντουλάπια | C5: Επάνω ντουλάπια: Αρθρωτά-Τυπικά (ποσότητα σε μέτρα) | D5: 25 | E5: 3.50 € | G5: =Δεδομένα[[#This Row],[Ποσότητα]]*Δεδομένα[[#This Row],[Εκτιμώμενο κόστος]] -> 88 € | H5: =Δεδομένα[[#This Row],[Ποσότητα]]*Δεδομένα[[#This Row],[Πραγματικό κόστος]] -> 0 €
B6: Συσκευές καθαρισμού | C6: Πλυντήριο πιάτων: Τυπικό | D6: 1 | E6: 250.00 € | G6: =Δεδομένα[[#This Row],[Ποσότητα]]*Δεδομένα[[#This Row],[Εκτιμώμενο κόστος]] -> 250 € | H6: =Δεδομένα[[#This Row],[Ποσότητα]]*Δεδομένα[[#This Row],[Πραγματικό κόστος]] -> 0 €
B7: Συσκευές καθαρισμού | C7: Απόρριψη: Τυπικό | D7: 1 | E7: 175.00 € | G7: =Δεδομένα[[#This Row],[Ποσότητα]]*Δεδομένα[[#This Row],[Εκτιμώμενο κόστος]] -> 175 € | H7: =Δεδομένα[[#This Row],[Ποσότητα]]*Δεδομένα[[#This Row],[Πραγματικό κόστος]] -> 0 €
B8: Συσκευές μαγειρέματος | C8: Περιοχή: Τυπικά συρόμενα | D8: 1 | E8: 375.00 € | G8: =Δεδομένα[[#This Row],[Ποσότητα]]*Δεδομένα[[#This Row],[Εκτιμώμενο κόστος]] -> 375 € | H8: =Δεδομένα[[#This Row],[Ποσότητα]]*Δεδομένα[[#This Row],[Πραγματικό κόστος]] -> 0 €
B9: Συσκευές μαγειρέματος | C9: Φούρνος μικροκυμάτων: Τυπικό | D9: 1 | E9: 300.00 € | G9: =Δεδομένα[[#This Row],[Ποσότητα]]*Δεδομένα[[#This Row],[Εκτιμώμενο κόστος]] -> 300 € | H9: =Δεδομένα[[#This Row],[Ποσότητα]]*Δεδομένα[[#This Row],[Πραγματικό κόστος]] -> 0 €
B10: Πάγκοι | C10: Επιφάνεια μασίφ (ποσότητα σε μέτρα) | D10: 23 | E10: 10.00 € | G10: =Δεδομένα[[#This Row],[Ποσότητα]]*Δεδομένα[[#This Row],[Εκτιμώμενο κόστος]] -> 230 € | H10: =Δεδομένα[[#This Row],[Ποσότητα]]*Δεδομένα[[#This Row],[Πραγματικό κόστος]] -> 0 €
B11: Πόρτες | C11: Εσωτερικό: Επένδυση με καπλαμά | D11: 1 | E11: 65.00 € | G11: =Δεδομένα[[#This Row],[Ποσότητα]]*Δεδομένα[[#This Row],[Εκτιμώμενο κόστος]] -> 65 € | H11: =Δεδομένα[[#This Row],[Ποσότητα]]*Δεδομένα[[#This Row],[Πραγματικό κόστος]] -> 0 €
B12: Πρόσθετα | C12: Πρόσθετα: Στάνταρ ζεστό νερό | D12: 1 | E12: 120.00 € | G12: =Δεδομένα[[#This Row],[Ποσότητα]]*Δεδομένα[[#This Row],[Εκτιμώμενο κόστος]] -> 120 € | H12: =Δεδομένα[[#This Row],[Ποσότητα]]*Δεδομένα[[#This Row],[Πραγματικό κόστος]] -> 0 €
B13: Πρόσθετα | C13: Πρόσθετα: Δοχείο κρεμοσάπουνου | D13: 1 | E13: 40.00 € | G13: =Δεδομένα[[#This Row],[Ποσότητα]]*Δεδομένα[[#This Row],[Εκτιμώμενο κόστος]] -> 40 € | H13: =Δεδομένα[[#This Row],[Ποσότητα]]*Δεδομένα[[#This Row],[Πραγματικό κόστος]] -> 0 €
B14: Μπαταρίες | C14: Μπαταρία: Μοχλός, Τυπική | D14: 1 | E14: 130.00 € | G14: =Δεδομένα[[#This Row],[Ποσότητα]]*Δεδομένα[[#This Row],[Εκτιμώμενο κόστος]] -> 130 € | H14: =Δεδομένα[[#This Row],[Ποσότητα]]*Δεδομένα[[#This Row],[Πραγματικό κόστος]] -> 0 €
B15: Δάπεδα | C15: Υλικό Laminate (ποσότητα σε τετραγωνικά μέτρα) | D15: 165 | E15: 3.50 € | G15: =Δεδομένα[[#This Row],[Ποσότητα]]*Δεδομένα[[#This Row],[Εκτιμώμενο κόστος]] -> 578 € | H15: =Δεδομένα[[#This Row],[Ποσότητα]]*Δεδομένα[[#This Row],[Πραγματικό κόστος]] -> 0 €
B16: Συσκευές πλύσης ρούχων | C16: Πλυντήριο: Τυπικό | D16: 1 | E16: 500.00 € | G16: =Δεδομένα[[#This Row],[Ποσότητα]]*Δεδομένα[[#This Row],[Εκτιμώμενο κόστος]] -> 500 € | H16: =Δεδομένα[[#This Row],[Ποσότητα]]*Δεδομένα[[#This Row],[Πραγματικό κόστος]] -> 0 €
B17: Συσκευές πλύσης ρούχων | C17: Στεγνωτήριο: Τυπικό | D17: 1 | E17: 375.00 € | G17: =Δεδομένα[[#This Row],[Ποσότητα]]*Δεδομένα[[#This Row],[Εκτιμώμενο κόστος]] -> 375 € | H17: =Δεδομένα[[#This Row],[Ποσότητα]]*Δεδομένα[[#This Row],[Πραγματικό κόστος]] -> 0 €
B18: Φωτισμός | C18: Φωτισμός: Κυλινδρικά σποτάκια | D18: 4 | E18: 35.00 € | G18: =Δεδομένα[[#This Row],[Ποσότητα]]*Δεδομένα[[#This Row],[Εκτιμώμενο κόστος]] -> 140 € | H18: =Δεδομένα[[#This Row],[Ποσότητα]]*Δεδομένα[[#This Row],[Πραγματικό κόστος]] -> 0 €
B19: Ψυγεία | C19: Ψυγείο: Εξωτερικό, Πολυτελείας | D19: 1 | E19: 1,200.00 € | G19: =Δεδομένα[[#This Row],[Ποσότητα]]*Δεδομένα[[#This Row],[Εκτιμώμενο κόστος]] -> 1,200 € | H19: =Δεδομένα[[#This Row],[Ποσότητα]]*Δεδομένα[[#This Row],[Πραγματικό κόστος]] -> 0 €
B20: Νιπτήρες | C20: Πολυτελείας με δύο λεκάνες, ανοξείδωτος χάλυβας | D20: 1 | E20: 125.00 € | G20: =Δεδομένα[[#This Row],[Ποσότητα]]*Δεδομένα[[#This Row],[Εκτιμώμενο κόστος]] -> 125 € | H20: =Δεδομένα[[#This Row],[Ποσότητα]]*Δεδομένα[[#This Row],[Πραγματικό κόστος]] -> 0 €
B21: Εξαερισμός | C21: Μονάδα απορροφητήρα: Τυπική με αγωγούς | D21: 1 | E21: 180.00 € | G21: =Δεδομένα[[#This Row],[Ποσότητα]]*Δεδομένα[[#This Row],[Εκτιμώμενο κόστος]] -> 180 € | H21: =Δεδομένα[[#This Row],[Ποσότητα]]*Δεδομένα[[#This Row],[Πραγματικό κόστος]] -> 0 €
B22: Τοίχοι | C22: Γυψοσανίδα (ποσότητα σε τετραγωνικά μέτρα) | D22: 70 | E22: 2.00 € | G22: =Δεδομένα[[#This Row],[Ποσότητα]]*Δεδομένα[[#This Row],[Εκτιμώμενο κόστος]] -> 140 € | H22: =Δεδομένα[[#This Row],[Ποσότητα]]*Δεδομένα[[#This Row],[Πραγματικό κόστος]] -> 0 €
B23: Παράθυρα | C23: Συρόμενα | D23: 2 | E23: 120.00 € | G23: =Δεδομένα[[#This Row],[Ποσότητα]]*Δεδομένα[[#This Row],[Εκτιμώμενο κόστος]] -> 240 € | H23: =Δεδομένα[[#This Row],[Ποσότητα]]*Δεδομένα[[#This Row],[Πραγματικό κόστος]] -> 0 €
B24: Άλλο | G24: =Δεδομένα[[#This Row],[Ποσότητα]]*Δεδομένα[[#This Row],[Εκτιμώμενο κόστος]] -> 0 € | H24: =Δεδομένα[[#This Row],[Ποσότητα]]*Δεδομένα[[#This Row],[Πραγματικό κόστος]] -> 0 €
B25: Σύνολο | E25: =SUBTOTAL(109,Δεδομένα[Εκτιμώμενο κόστος]) -> 4,014.00 € | F25: =SUBTOTAL(109,Δεδομένα[Πραγματικό κόστος]) -> 0.00 € | G25: =SUBTOTAL(109,Δεδομένα[Συνολικό εκτιμώμενο κόστος]) -> 5,375.00 € | H25: =SUBTOTAL(109,Δεδομένα[Συνολικό πραγματικό κόστος]) -> 0.00 €
B26: Μερικό άθροισμα | G26: =SUBTOTAL(109,Δεδομένα[Συνολικό εκτιμώμενο κόστος]) -> 5,375.00 € | H26: =SUBTOTAL(109,Δεδομένα[Συνολικό πραγματικό κόστος]) -> 0.00 €
B27: Μη αναμενόμενες δαπάνες - Προσθήκη 30% | G27: =G26*0.3 -> 1,612.50 € | H27: =H26*0.3 -> 0.00 €
B28: Σύνολο | G28: =SUM(G26:G27) -> 6,987.50 € | H28: =SUM(H26:H27) -> 0.00 €
